[Event "*** Titled Tuesday Blitz"]
[Site "Chess.com"]
[Date "2020.05.12"]
[Round "3"]
[White "vovachesss"]
[Black "Jospem"]
[Result "0-1"]
[WhiteElo "2635"]
[BlackElo "2863"]
[TimeControl "180+1"]
[EndTime "10:28:16 PDT"]
[Termination "Jospem won on time"]

1. d4 {[%clk 0:03:00.9]} 1... Nf6 {[%clk 0:02:59.5]} 2. Nc3 {[%clk 0:03:01]}
2... d5 {[%clk 0:02:59.2]} 3. Bf4 {[%clk 0:03:00.1]} 3... a6 {[%clk 0:02:59.7]}
4. e3 {[%clk 0:02:58.5]} 4... e6 {[%clk 0:03:00.4]} 5. Nf3 {[%clk 0:02:58.4]}
5... b5 {[%clk 0:03:01]} 6. Bd3 {[%clk 0:02:57.1]} 6... Bb7 {[%clk 0:03:00.9]}
7. O-O {[%clk 0:02:57.5]} 7... Nbd7 {[%clk 0:03:01.3]} 8. a4 {[%clk 0:02:55.8]}
8... b4 {[%clk 0:03:01]} 9. Ne2 {[%clk 0:02:56.4]} 9... c5 {[%clk 0:03:01.5]}
10. c3 {[%clk 0:02:48.2]} 10... c4 {[%clk 0:02:58]} 11. Bb1 {[%clk 0:02:47]}
11... a5 {[%clk 0:02:58.5]} 12. Ne5 {[%clk 0:02:44.4]} 12... Be7 {[%clk
0:02:55.9]} 13. f3 {[%clk 0:02:44]} 13... O-O {[%clk 0:02:55.6]} 14. Ng3 {[%clk
0:02:38.1]} 14... g6 {[%clk 0:02:55]} 15. e4 {[%clk 0:02:36.1]} 15... Qb6 {[%clk
0:02:44.1]} 16. h4 {[%clk 0:02:25.2]} 16... Nxe5 {[%clk 0:02:40.6]} 17. Bxe5
{[%clk 0:02:23.7]} 17... Nd7 {[%clk 0:02:41.2]} 18. Bf4 {[%clk 0:02:13.1]} 18...
Bxh4 {[%clk 0:02:39]} 19. exd5 {[%clk 0:01:45.6]} 19... exd5 {[%clk 0:02:15.9]}
20. Ne2 {[%clk 0:01:30.1]} 20... Rfe8 {[%clk 0:02:15.1]} 21. g3 {[%clk 0:01:14]}
21... Bf6 {[%clk 0:02:14.8]} 22. Qd2 {[%clk 0:01:14.3]} 22... b3 {[%clk
0:02:12.8]} 23. Kg2 {[%clk 0:01:05.1]} 23... Re7 {[%clk 0:02:12.6]} 24. g4
{[%clk 0:00:56.5]} 24... Rae8 {[%clk 0:02:07.3]} 25. Ng3 {[%clk 0:00:57]} 25...
Nf8 {[%clk 0:02:05.6]} 26. Bg5 {[%clk 0:00:53.7]} 26... Bxg5 {[%clk 0:02:03.4]}
27. Qxg5 {[%clk 0:00:54.6]} 27... Ne6 {[%clk 0:02:04]} 28. Qd2 {[%clk
0:00:53.7]} 28... Qd6 {[%clk 0:02:03.3]} 29. f4 {[%clk 0:00:53.2]} 29... Nf8
{[%clk 0:01:57.4]} 30. f5 {[%clk 0:00:49]} 30... Re3 {[%clk 0:01:47.9]} 31. Qf2
{[%clk 0:00:49.1]} 31... g5 {[%clk 0:01:38.2]} 32. f6 {[%clk 0:00:22.2]} 32...
Ng6 {[%clk 0:01:30.7]} 33. Bxg6 {[%clk 0:00:14.6]} 33... hxg6 {[%clk 0:01:27.9]}
34. Rh1 {[%clk 0:00:14.8]} 34... Qf4 {[%clk 0:00:58]} 35. Rh3 {[%clk 0:00:12.6]}
35... Qxf2+ {[%clk 0:00:53.1]} 36. Kxf2 {[%clk 0:00:13.5]} 36... R3e6 {[%clk
0:00:53.7]} 37. Rah1 {[%clk 0:00:10.3]} 37... Rxf6+ {[%clk 0:00:54.2]} 38. Kg2
{[%clk 0:00:10]} 38... Kf8 {[%clk 0:00:52.9]} 39. Rh8+ {[%clk 0:00:07.4]} 39...
Ke7 {[%clk 0:00:53.5]} 40. Re1+ {[%clk 0:00:07.8]} 40... Re6 {[%clk 0:00:54.2]}
41. Rxe6+ {[%clk 0:00:08.3]} 41... fxe6 {[%clk 0:00:53.8]} 42. Rh7+ {[%clk
0:00:09]} 42... Kf6 {[%clk 0:00:49.8]} 43. Rxb7 {[%clk 0:00:09.9]} 43... e5
{[%clk 0:00:50.7]} 44. dxe5+ {[%clk 0:00:09.4]} 44... Kxe5 {[%clk 0:00:51.6]}
45. Ne2 {[%clk 0:00:07.7]} 45... Ke4 {[%clk 0:00:51.6]} 46. Nd4 {[%clk
0:00:05.1]} 46... Kd3 {[%clk 0:00:52]} 47. Rd7 {[%clk 0:00:04.7]} 47... Kd2
{[%clk 0:00:50.8]} 48. Rxd5 {[%clk 0:00:04.5]} 48... Kc1 {[%clk 0:00:51.5]} 49.
Rxa5 {[%clk 0:00:03.5]} 49... Kxb2 {[%clk 0:00:51.7]} 50. Rc5 {[%clk 0:00:02.7]}
50... Kxc3 {[%clk 0:00:51]} 0-1

[Event "*** Titled Tuesday Blitz"]
[Site "Chess.com"]
[Date "2020.05.12"]
[Round "3"]
[White "Shield12"]
[Black "murtas73"]
[Result "1-0"]
[WhiteElo "2805"]
[BlackElo "2603"]
[TimeControl "180+1"]
[EndTime "10:28:17 PDT"]
[Termination "Shield12 won by resignation"]

1. d4 {[%clk 0:03:00.9]} 1... Nf6 {[%clk 0:02:57.6]} 2. c4 {[%clk 0:03:01]} 2...
e6 {[%clk 0:02:57.6]} 3. Nf3 {[%clk 0:03:01.3]} 3... b6 {[%clk 0:02:56.3]} 4. g3
{[%clk 0:02:59.1]} 4... Bb7 {[%clk 0:02:56.1]} 5. Bg2 {[%clk 0:02:59]} 5... Be7
{[%clk 0:02:56.7]} 6. O-O {[%clk 0:02:58.8]} 6... O-O {[%clk 0:02:56.4]} 7. Nc3
{[%clk 0:02:59.3]} 7... Ne4 {[%clk 0:02:54]} 8. Bd2 {[%clk 0:02:59.5]} 8... d5
{[%clk 0:02:49.5]} 9. cxd5 {[%clk 0:02:55]} 9... exd5 {[%clk 0:02:48.9]} 10. Rc1
{[%clk 0:02:53.8]} 10... Nd7 {[%clk 0:02:47.9]} 11. Bf4 {[%clk 0:02:52.8]} 11...
c5 {[%clk 0:02:44.8]} 12. dxc5 {[%clk 0:02:51]} 12... Nxc3 {[%clk 0:02:40.9]}
13. Rxc3 {[%clk 0:02:49.7]} 13... bxc5 {[%clk 0:02:41.8]} 14. Ne5 {[%clk
0:02:38]} 14... Nb6 {[%clk 0:02:37.1]} 15. b3 {[%clk 0:02:33.8]} 15... Bd6
{[%clk 0:02:33.2]} 16. Nd3 {[%clk 0:02:31.7]} 16... Rc8 {[%clk 0:02:29.8]} 17.
Bxd6 {[%clk 0:02:26.9]} 17... Qxd6 {[%clk 0:02:29.7]} 18. Qc1 {[%clk 0:02:27.2]}
18... Nd7 {[%clk 0:02:20.8]} 19. Nf4 {[%clk 0:02:21]} 19... Rc7 {[%clk
0:02:16.9]} 20. Nxd5 {[%clk 0:01:52.2]} 20... Bxd5 {[%clk 0:02:15.8]} 21. Rd1
{[%clk 0:01:52.4]} 21... Nf6 {[%clk 0:02:15.2]} 22. Bxd5 {[%clk 0:01:50.1]}
22... Nxd5 {[%clk 0:02:11.6]} 23. Rcd3 {[%clk 0:01:50]} 23... Qe6 {[%clk
0:02:03.9]} 24. Rxd5 {[%clk 0:01:49.7]} 24... Qxe2 {[%clk 0:02:04.4]} 25. Rd8
{[%clk 0:01:27.1]} 25... Qe7 {[%clk 0:01:43.1]} 26. Rxf8+ {[%clk 0:01:23.2]}
26... Qxf8 {[%clk 0:01:43.4]} 27. Qc4 {[%clk 0:01:20.9]} 27... g6 {[%clk
0:01:41.5]} 28. Rd5 {[%clk 0:01:19.1]} 28... Qe7 {[%clk 0:01:41.3]} 29. Kg2
{[%clk 0:01:17.9]} 29... h5 {[%clk 0:01:39.6]} 30. h4 {[%clk 0:01:17.4]} 30...
Kh7 {[%clk 0:01:32.4]} 31. Rd3 {[%clk 0:01:16.6]} 31... Qe5 {[%clk 0:01:29.5]}
32. Rc3 {[%clk 0:01:12.9]} 32... Kg7 {[%clk 0:01:23.3]} 33. Rc1 {[%clk
0:01:07.5]} 33... a5 {[%clk 0:01:20.8]} 34. Qd3 {[%clk 0:01:02.6]} 34... Qf6
{[%clk 0:01:17.5]} 35. Rc4 {[%clk 0:01:01.8]} 35... Qc6+ {[%clk 0:01:15.8]} 36.
Kg1 {[%clk 0:01:01.4]} 36... Re7 {[%clk 0:01:13.2]} 37. Qc3+ {[%clk 0:01:01.4]}
37... Kh7 {[%clk 0:01:11.7]} 38. Rxc5 {[%clk 0:01:01.4]} 38... Re1+ {[%clk
0:01:05.4]} 39. Qxe1 {[%clk 0:01:01.2]} 39... Qxc5 {[%clk 0:01:06]} 40. Qe4
{[%clk 0:00:59.4]} 40... Kg8 {[%clk 0:01:04.4]} 41. Kg2 {[%clk 0:00:58.6]} 41...
Qb6 {[%clk 0:01:03.1]} 42. Qd5 {[%clk 0:00:56.9]} 42... Qb4 {[%clk 0:01:02.1]}
43. Kf3 {[%clk 0:00:50.9]} 43... Kf8 {[%clk 0:01:01.9]} 44. Qd8+ {[%clk
0:00:46.6]} 44... Kg7 {[%clk 0:01:01.2]} 45. Qd3 {[%clk 0:00:46]} 45... Kg8
{[%clk 0:00:59.1]} 46. Ke3 {[%clk 0:00:45.5]} 46... Qc5+ {[%clk 0:00:58.7]} 47.
Qd4 {[%clk 0:00:44.7]} 47... Qc1+ {[%clk 0:00:58]} 48. Kf3 {[%clk 0:00:43.6]}
48... Qc6+ {[%clk 0:00:56.4]} 49. Qe4 {[%clk 0:00:41.6]} 49... Qc3+ {[%clk
0:00:55.7]} 50. Kg2 {[%clk 0:00:41.4]} 50... Qd2 {[%clk 0:00:54.4]} 51. a3
{[%clk 0:00:38.2]} 51... Qc3 {[%clk 0:00:54.3]} 52. b4 {[%clk 0:00:35.3]} 52...
Qxa3 {[%clk 0:00:53.4]} 53. Qa8+ {[%clk 0:00:34.3]} 53... Kh7 {[%clk 0:00:51.5]}
54. bxa5 {[%clk 0:00:33.4]} 54... Qc5 {[%clk 0:00:49.6]} 55. a6 {[%clk
0:00:32.5]} 1-0

[Event "*** Titled Tuesday Blitz"]
[Site "Chess.com"]
[Date "2020.05.12"]
[Round "3"]
[White "Mimsychess"]
[Black "Sven_Tica"]
[Result "1-0"]
[WhiteElo "2339"]
[BlackElo "2639"]
[TimeControl "180+1"]
[EndTime "10:28:17 PDT"]
[Termination "Mimsychess won by resignation"]

1. d4 {[%clk 0:03:00.9]} 1... d5 {[%clk 0:02:56.2]} 2. c4 {[%clk 0:03:00.1]}
2... e6 {[%clk 0:02:56.8]} 3. Nc3 {[%clk 0:02:59.2]} 3... Nf6 {[%clk 0:02:56.3]}
4. cxd5 {[%clk 0:02:59.1]} 4... exd5 {[%clk 0:02:57.2]} 5. Bg5 {[%clk
0:02:59.2]} 5... c6 {[%clk 0:02:57.8]} 6. e3 {[%clk 0:02:58.7]} 6... Be6 {[%clk
0:02:57.5]} 7. Bd3 {[%clk 0:02:53.8]} 7... Nbd7 {[%clk 0:02:58.1]} 8. Nge2
{[%clk 0:02:53.3]} 8... h6 {[%clk 0:02:58.7]} 9. Bh4 {[%clk 0:02:52]} 9... g5
{[%clk 0:02:59.3]} 10. Bg3 {[%clk 0:02:51.9]} 10... Nh5 {[%clk 0:03:00]} 11. Qc2
{[%clk 0:02:48.9]} 11... Nxg3 {[%clk 0:03:00.5]} 12. hxg3 {[%clk 0:02:43.1]}
12... Bd6 {[%clk 0:03:00.2]} 13. O-O-O {[%clk 0:02:41.1]} 13... Qc7 {[%clk
0:03:00.8]} 14. f3 {[%clk 0:02:39.4]} 14... O-O-O {[%clk 0:02:42.2]} 15. g4
{[%clk 0:02:39]} 15... Nf6 {[%clk 0:02:40.4]} 16. Kb1 {[%clk 0:02:35.2]} 16...
Kb8 {[%clk 0:02:39.7]} 17. Nc1 {[%clk 0:02:34.3]} 17... Qe7 {[%clk 0:02:35.6]}
18. Na4 {[%clk 0:02:29.8]} 18... Bc8 {[%clk 0:02:30.2]} 19. Rhe1 {[%clk
0:02:18.3]} 19... Bb4 {[%clk 0:02:25.3]} 20. Re2 {[%clk 0:02:17]} 20... h5
{[%clk 0:02:25.9]} 21. a3 {[%clk 0:02:14.5]} 21... Bd6 {[%clk 0:02:22.7]} 22.
gxh5 {[%clk 0:02:14.5]} 22... Nxh5 {[%clk 0:02:23]} 23. Nb3 {[%clk 0:02:09.2]}
23... Ng3 {[%clk 0:02:22.3]} 24. Ree1 {[%clk 0:02:07.6]} 24... Rh2 {[%clk
0:02:22.9]} 25. Nac5 {[%clk 0:02:05.8]} 25... Bh3 {[%clk 0:02:07.4]} 26. Rd2
{[%clk 0:02:01.5]} 26... Be6 {[%clk 0:02:08]} 27. Na5 {[%clk 0:01:44.3]} 27...
Bxc5 {[%clk 0:01:57.5]} 28. dxc5 {[%clk 0:01:45.2]} 28... Qc7 {[%clk 0:01:55.3]}
29. Qc3 {[%clk 0:01:40.7]} 29... Rdh8 {[%clk 0:01:52.3]} 30. e4 {[%clk
0:01:21.7]} 30... Rh1 {[%clk 0:01:47.5]} 31. Rdd1 {[%clk 0:01:17.1]} 31... R1h2
{[%clk 0:01:25.6]} 32. exd5 {[%clk 0:01:06.6]} 32... Bxd5 {[%clk 0:01:26.5]} 33.
Nc4 {[%clk 0:01:03.7]} 33... Rd8 {[%clk 0:01:15.4]} 34. Qf6 {[%clk 0:00:51]}
34... Bxc4 {[%clk 0:01:02.7]} 35. Bxc4 {[%clk 0:00:46.7]} 35... Rxd1+ {[%clk
0:01:03.3]} 36. Rxd1 {[%clk 0:00:47.1]} 36... a6 {[%clk 0:01:04]} 37. Rd8+
{[%clk 0:00:26.2]} 37... Ka7 {[%clk 0:00:59.2]} 38. Qd6 {[%clk 0:00:25.1]} 38...
Qxd6 {[%clk 0:00:52]} 39. cxd6 {[%clk 0:00:26]} 39... Rxg2 {[%clk 0:00:52.6]}
40. Kc1 {[%clk 0:00:24.8]} 40... Kb6 {[%clk 0:00:39.3]} 41. Rc8 {[%clk
0:00:21.2]} 41... Nf5 {[%clk 0:00:20.6]} 42. d7 {[%clk 0:00:19.5]} 42... Rg1+
{[%clk 0:00:18.4]} 43. Kd2 {[%clk 0:00:18.2]} 43... Rg2+ {[%clk 0:00:19.3]} 44.
Kc3 {[%clk 0:00:18]} 1-0

[Event "*** Titled Tuesday Blitz"]
[Site "Chess.com"]
[Date "2020.05.12"]
[Round "3"]
[White "XDPS"]
[Black "Duhless"]
[Result "0-1"]
[WhiteElo "2680"]
[BlackElo "3095"]
[TimeControl "180+1"]
[EndTime "10:28:18 PDT"]
[Termination "Duhless won by resignation"]

1. e4 {[%clk 0:02:56.7]} 1... Nf6 {[%clk 0:03:00.9]} 2. e5 {[%clk 0:02:55.4]}
2... Nd5 {[%clk 0:03:00.6]} 3. Nc3 {[%clk 0:02:49.8]} 3... Nxc3 {[%clk
0:02:58.3]} 4. dxc3 {[%clk 0:02:50.7]} 4... d5 {[%clk 0:02:57.2]} 5. Bf4 {[%clk
0:02:45]} 5... Bf5 {[%clk 0:02:51.7]} 6. g4 {[%clk 0:02:37.7]} 6... Be4 {[%clk
0:02:49]} 7. f3 {[%clk 0:02:37.6]} 7... Bg6 {[%clk 0:02:48.9]} 8. e6 {[%clk
0:02:28.1]} 8... fxe6 {[%clk 0:02:47.3]} 9. h4 {[%clk 0:02:25.3]} 9... Nd7
{[%clk 0:02:42.1]} 10. h5 {[%clk 0:02:22.3]} 10... Bf7 {[%clk 0:02:42.1]} 11.
Qe2 {[%clk 0:02:20.9]} 11... e5 {[%clk 0:02:38.8]} 12. Bxe5 {[%clk 0:02:20.8]}
12... Nxe5 {[%clk 0:02:39.7]} 13. Qxe5 {[%clk 0:02:21.1]} 13... Qd6 {[%clk
0:02:33]} 14. Bb5+ {[%clk 0:02:08.5]} 14... c6 {[%clk 0:02:26.5]} 15. Qxd6
{[%clk 0:02:08.8]} 15... exd6 {[%clk 0:02:27.2]} 16. Bd3 {[%clk 0:02:09.3]}
16... Be7 {[%clk 0:02:24.8]} 17. Kf2 {[%clk 0:02:03.2]} 17... O-O {[%clk
0:02:16.1]} 18. Ne2 {[%clk 0:02:00.6]} 18... Rae8 {[%clk 0:02:13.2]} 19. Ng3
{[%clk 0:01:57.1]} 19... g6 {[%clk 0:02:01.5]} 20. hxg6 {[%clk 0:01:51.5]} 20...
hxg6 {[%clk 0:02:00.9]} 21. Rae1 {[%clk 0:01:31.2]} 21... Bg5 {[%clk 0:01:55.9]}
22. Ne2 {[%clk 0:01:26.9]} 22... Bd2 {[%clk 0:01:46.8]} 23. Rd1 {[%clk
0:01:26.7]} 23... Be3+ {[%clk 0:01:46.9]} 24. Kg2 {[%clk 0:01:27]} 24... c5
{[%clk 0:01:40.3]} 25. Ng3 {[%clk 0:01:23.7]} 25... Kg7 {[%clk 0:01:25.5]} 26.
b3 {[%clk 0:01:17.8]} 26... Re7 {[%clk 0:01:18.3]} 27. c4 {[%clk 0:01:16.2]}
27... Bf4 {[%clk 0:01:07.3]} 28. Ne2 {[%clk 0:01:12.4]} 28... Bg8 {[%clk
0:00:56.9]} 29. Rh3 {[%clk 0:00:34.9]} 29... dxc4 {[%clk 0:00:45.6]} 30. bxc4
{[%clk 0:00:33.8]} 30... d5 {[%clk 0:00:30.9]} 31. cxd5 {[%clk 0:00:31.2]} 31...
Bxd5 {[%clk 0:00:30.1]} 32. Nc3 {[%clk 0:00:31.3]} 32... Bc6 {[%clk 0:00:27.5]}
33. Be4 {[%clk 0:00:31.4]} 33... Be5 {[%clk 0:00:17.8]} 34. Rdh1 {[%clk
0:00:27.3]} 34... Bxc3 {[%clk 0:00:13.7]} 35. Rh7+ {[%clk 0:00:22.6]} 35... Kf6
{[%clk 0:00:13.4]} 36. g5+ {[%clk 0:00:20.4]} 36... Ke6 {[%clk 0:00:13.2]} 37.
Bxc6 {[%clk 0:00:20.1]} 37... Rxh7 {[%clk 0:00:11.3]} 38. Rxh7 {[%clk
0:00:20.3]} 38... bxc6 {[%clk 0:00:11.9]} 39. Rxa7 {[%clk 0:00:20.5]} 39... Rf5
{[%clk 0:00:11.8]} 0-1

[Event "*** Titled Tuesday Blitz"]
[Site "Chess.com"]
[Date "2020.05.12"]
[Round "3"]
[White "lIlIlIlI_lIl"]
[Black "El_ultimo_Pablo"]
[Result "1-0"]
[WhiteElo "2635"]
[BlackElo "2422"]
[TimeControl "180+1"]
[EndTime "10:28:19 PDT"]
[Termination "lIlIlIlI_lIl won by resignation"]

1. e4 {[%clk 0:03:00.9]} 1... e5 {[%clk 0:02:59.7]} 2. Nf3 {[%clk 0:03:00.8]}
2... Nc6 {[%clk 0:03:00.1]} 3. Bb5 {[%clk 0:03:01]} 3... a6 {[%clk 0:03:00.2]}
4. Ba4 {[%clk 0:03:01.4]} 4... Nf6 {[%clk 0:03:00.5]} 5. d3 {[%clk 0:03:01.7]}
5... b5 {[%clk 0:03:00.3]} 6. Bb3 {[%clk 0:03:01.9]} 6... Bc5 {[%clk 0:03:00.9]}
7. Nc3 {[%clk 0:03:02.2]} 7... h6 {[%clk 0:03:00.3]} 8. Nd5 {[%clk 0:03:02.2]}
8... d6 {[%clk 0:03:00.1]} 9. c3 {[%clk 0:03:01.7]} 9... Be6 {[%clk 0:02:57.6]}
10. d4 {[%clk 0:02:57.4]} 10... exd4 {[%clk 0:02:56.2]} 11. cxd4 {[%clk
0:02:58.3]} 11... Bxd5 {[%clk 0:02:23.2]} 12. exd5 {[%clk 0:02:56.3]} 12... Bb4+
{[%clk 0:02:21.3]} 13. Kf1 {[%clk 0:02:56.2]} 13... Ne7 {[%clk 0:02:16]} 14. Nh4
{[%clk 0:02:17.1]} 14... Qd7 {[%clk 0:01:46.1]} 15. h3 {[%clk 0:01:56.5]} 15...
Nf5 {[%clk 0:01:37.1]} 16. Qe2+ {[%clk 0:01:42]} 16... Kf8 {[%clk 0:01:31.7]}
17. Nf3 {[%clk 0:01:41.9]} 17... Re8 {[%clk 0:01:26.9]} 18. Qc2 {[%clk
0:01:39.3]} 18... Nxd4 {[%clk 0:01:20]} 19. Qd3 {[%clk 0:01:32.2]} 19... Nxf3
{[%clk 0:01:15.4]} 20. gxf3 {[%clk 0:01:32.2]} 20... Re1+ {[%clk 0:01:14.9]} 21.
Kg2 {[%clk 0:01:32.7]} 21... Rxh1 {[%clk 0:01:15.2]} 22. Kxh1 {[%clk 0:01:33.6]}
22... Qxh3+ {[%clk 0:01:13.5]} 23. Kg1 {[%clk 0:01:34]} 23... Ng4 {[%clk
0:00:53.1]} 24. Bf4 {[%clk 0:01:29.3]} 24... Nf6 {[%clk 0:00:34.4]} 25. a4
{[%clk 0:01:21.6]} 25... g6 {[%clk 0:00:22.7]} 26. axb5 {[%clk 0:01:20.4]} 26...
axb5 {[%clk 0:00:23]} 27. Qd4 {[%clk 0:01:19.6]} 27... Kg7 {[%clk 0:00:16.2]}
28. Qxb4 {[%clk 0:01:18.5]} 28... Qxf3 {[%clk 0:00:16.7]} 29. Qd4 {[%clk
0:01:13.9]} 29... Re8 {[%clk 0:00:16.5]} 30. Bg3 {[%clk 0:01:04.6]} 30... Re4
{[%clk 0:00:16.6]} 31. Qc3 {[%clk 0:01:04.8]} 31... h5 {[%clk 0:00:16.1]} 32.
Qxf3 {[%clk 0:01:04]} 32... Rd4 {[%clk 0:00:13]} 33. Qc3 {[%clk 0:00:52.4]}
33... Re4 {[%clk 0:00:12.1]} 34. Ra8 {[%clk 0:00:47.8]} 34... h4 {[%clk
0:00:11.9]} 35. Bh2 {[%clk 0:00:46]} 35... g5 {[%clk 0:00:10.8]} 36. Bc2 {[%clk
0:00:44.9]} 36... Rg4+ {[%clk 0:00:10.5]} 37. Kf1 {[%clk 0:00:44.5]} 37... Rc4
{[%clk 0:00:09.5]} 38. Rg8+ {[%clk 0:00:40.3]} 38... Kxg8 {[%clk 0:00:09.8]} 39.
Qxf6 {[%clk 0:00:41.2]} 39... Rxc2 {[%clk 0:00:09]} 40. Qxg5+ {[%clk 0:00:40.4]}
40... Kf8 {[%clk 0:00:09.5]} 41. Qd8+ {[%clk 0:00:40.2]} 41... Kg7 {[%clk
0:00:09.6]} 42. Bf4 {[%clk 0:00:39.7]} 42... Rxb2 {[%clk 0:00:06.8]} 43. Bh6+
{[%clk 0:00:36.7]} 43... Kg6 {[%clk 0:00:05.1]} 44. Qg5+ {[%clk 0:00:36.4]} 1-0

[Event "*** Titled Tuesday Blitz"]
[Site "Chess.com"]
[Date "2020.05.12"]
[Round "3"]
[White "DanielTitichoca"]
[Black "zmarian"]
[Result "1-0"]
[WhiteElo "2350"]
[BlackElo "2141"]
[TimeControl "180+1"]
[EndTime "10:28:19 PDT"]
[Termination "DanielTitichoca won by resignation"]

1. e4 {[%clk 0:03:00.9]} 1... g6 {[%clk 0:02:58.5]} 2. d4 {[%clk 0:02:59.8]}
2... Bg7 {[%clk 0:02:58.4]} 3. Nf3 {[%clk 0:02:55.3]} 3... c5 {[%clk 0:02:58]}
4. Nc3 {[%clk 0:02:46]} 4... cxd4 {[%clk 0:02:56.6]} 5. Nxd4 {[%clk 0:02:46.9]}
5... Nc6 {[%clk 0:02:56]} 6. Be3 {[%clk 0:02:44.3]} 6... d6 {[%clk 0:02:55.6]}
7. f3 {[%clk 0:02:36.8]} 7... Nf6 {[%clk 0:02:54.9]} 8. Qd2 {[%clk 0:02:27.3]}
8... O-O {[%clk 0:02:52.2]} 9. Bc4 {[%clk 0:02:24.7]} 9... Bd7 {[%clk
0:02:48.4]} 10. g4 {[%clk 0:02:22.6]} 10... Ne5 {[%clk 0:02:41.9]} 11. Be2
{[%clk 0:02:20.3]} 11... Rc8 {[%clk 0:02:36.2]} 12. h4 {[%clk 0:02:04.4]} 12...
h5 {[%clk 0:02:34.4]} 13. gxh5 {[%clk 0:02:02]} 13... Nxh5 {[%clk 0:02:32.9]}
14. Rg1 {[%clk 0:02:01]} 14... Nc4 {[%clk 0:02:30.8]} 15. Bxc4 {[%clk 0:01:59]}
15... Rxc4 {[%clk 0:02:29.5]} 16. O-O-O {[%clk 0:01:59.4]} 16... Qa5 {[%clk
0:02:07.2]} 17. Nb3 {[%clk 0:01:56.2]} 17... Bxc3 {[%clk 0:01:49.8]} 18. Nxa5
{[%clk 0:01:36.6]} 18... Bxd2+ {[%clk 0:01:48.9]} 19. Rxd2 {[%clk 0:01:32.1]}
19... Rc7 {[%clk 0:01:45.3]} 20. Bxa7 {[%clk 0:01:19.4]} 20... Bc6 {[%clk
0:01:43.1]} 21. Be3 {[%clk 0:01:16.2]} 21... Ra8 {[%clk 0:01:38.8]} 22. Nxc6
{[%clk 0:01:10.2]} 22... bxc6 {[%clk 0:01:37.4]} 23. a3 {[%clk 0:01:05.6]} 23...
c5 {[%clk 0:01:36.1]} 24. Rd5 {[%clk 0:01:01.9]} 24... Kh7 {[%clk 0:01:34.1]}
25. e5 {[%clk 0:00:58.7]} 25... Rc6 {[%clk 0:01:28]} 26. exd6 {[%clk 0:00:55.4]}
26... exd6 {[%clk 0:01:27.3]} 27. Rgd1 {[%clk 0:00:55.8]} 27... Re8 {[%clk
0:01:24.5]} 28. Bg5 {[%clk 0:00:52.4]} 28... Re6 {[%clk 0:01:23]} 29. c4 {[%clk
0:00:49.4]} 29... Ng7 {[%clk 0:01:21.6]} 30. Bf4 {[%clk 0:00:47.1]} 30... Nf5
{[%clk 0:01:20]} 31. h5 {[%clk 0:00:46.3]} 31... Nd4 {[%clk 0:01:12.2]} 32.
hxg6+ {[%clk 0:00:35]} 32... fxg6 {[%clk 0:01:09.2]} 33. Rh1+ {[%clk 0:00:29.6]}
33... Kg8 {[%clk 0:01:06.9]} 34. Bd2 {[%clk 0:00:25.8]} 34... Rc7 {[%clk
0:00:57.2]} 35. Bc3 {[%clk 0:00:25.2]} 35... Ne2+ {[%clk 0:00:55.3]} 36. Kd2
{[%clk 0:00:25.5]} 36... Nxc3 {[%clk 0:00:53.5]} 37. Kxc3 {[%clk 0:00:26]} 37...
Rf7 {[%clk 0:00:53]} 38. Rd3 {[%clk 0:00:24.9]} 38... Ref6 {[%clk 0:00:52.6]}
39. a4 {[%clk 0:00:23.9]} 39... Rxf3 {[%clk 0:00:51.9]} 40. Rxf3 {[%clk
0:00:22]} 40... Rxf3+ {[%clk 0:00:51.5]} 41. Kc2 {[%clk 0:00:22.9]} 41... Kg7
{[%clk 0:00:49.2]} 42. Rd1 {[%clk 0:00:21.5]} 42... Rf2+ {[%clk 0:00:44.3]} 43.
Kb3 {[%clk 0:00:20.8]} 43... Rf3+ {[%clk 0:00:44.1]} 44. Kc2 {[%clk 0:00:21]}
44... Rf2+ {[%clk 0:00:43.7]} 45. Rd2 {[%clk 0:00:21.1]} 45... Rxd2+ {[%clk
0:00:39.9]} 46. Kxd2 {[%clk 0:00:22]} 46... Kf7 {[%clk 0:00:39.1]} 47. a5 {[%clk
0:00:22.2]} 47... Ke7 {[%clk 0:00:39.1]} 48. a6 {[%clk 0:00:22.6]} 48... Kd7
{[%clk 0:00:39.5]} 49. a7 {[%clk 0:00:23.2]} 49... Kc7 {[%clk 0:00:39.7]} 50.
a8=Q {[%clk 0:00:23.1]} 1-0

[Event "*** Titled Tuesday Blitz"]
[Site "Chess.com"]
[Date "2020.05.12"]
[Round "3"]
[White "LastHeroJr"]
[Black "kasparicy"]
[Result "0-1"]
[WhiteElo "2500"]
[BlackElo "2307"]
[TimeControl "180+1"]
[EndTime "10:28:20 PDT"]
[Termination "kasparicy won on time"]

1. e4 {[%clk 0:03:00.9]} 1... c5 {[%clk 0:02:54.4]} 2. Nf3 {[%clk 0:03:00.7]}
2... d6 {[%clk 0:02:54.6]} 3. d4 {[%clk 0:02:58.8]} 3... cxd4 {[%clk 0:02:55.5]}
4. Nxd4 {[%clk 0:02:59.6]} 4... Nf6 {[%clk 0:02:55.8]} 5. Nc3 {[%clk 0:02:59.4]}
5... a6 {[%clk 0:02:56]} 6. Bg5 {[%clk 0:02:59.5]} 6... Nbd7 {[%clk 0:02:55.6]}
7. f4 {[%clk 0:02:58.5]} 7... e6 {[%clk 0:02:56.1]} 8. Qf3 {[%clk 0:02:57.5]}
8... Qc7 {[%clk 0:02:56.4]} 9. O-O-O {[%clk 0:02:54.5]} 9... Be7 {[%clk
0:02:56.9]} 10. g4 {[%clk 0:02:53.1]} 10... h6 {[%clk 0:02:57]} 11. Bxf6 {[%clk
0:02:53.4]} 11... Bxf6 {[%clk 0:02:56.9]} 12. h4 {[%clk 0:02:52.4]} 12... b5
{[%clk 0:02:53.8]} 13. Ndxb5 {[%clk 0:02:04.6]} 13... axb5 {[%clk 0:02:48.9]}
14. Nxb5 {[%clk 0:02:05.5]} 14... Qa5 {[%clk 0:02:36.3]} 15. Nxd6+ {[%clk
0:02:01.2]} 15... Kf8 {[%clk 0:02:36.2]} 16. e5 {[%clk 0:01:51.4]} 16... Qxa2
{[%clk 0:02:00.5]} 17. exf6 {[%clk 0:01:43.8]} 17... Nxf6 {[%clk 0:02:01.4]} 18.
Nxc8 {[%clk 0:01:39.6]} 18... Rxc8 {[%clk 0:01:54.5]} 19. Qa3+ {[%clk
0:01:38.2]} 19... Qxa3 {[%clk 0:01:52.8]} 20. bxa3 {[%clk 0:01:39.1]} 20... Nxg4
{[%clk 0:01:53.4]} 21. Rd7 {[%clk 0:01:26.7]} 21... g6 {[%clk 0:01:47.6]} 22.
Bd3 {[%clk 0:01:09.7]} 22... Kg7 {[%clk 0:01:47.1]} 23. h5 {[%clk 0:01:09.7]}
23... Rhd8 {[%clk 0:01:43.6]} 24. Rxd8 {[%clk 0:01:06.9]} 24... Rxd8 {[%clk
0:01:44.5]} 25. hxg6 {[%clk 0:01:07.7]} 25... fxg6 {[%clk 0:01:45.4]} 26. Rg1
{[%clk 0:01:04.9]} 26... h5 {[%clk 0:01:45.3]} 27. a4 {[%clk 0:01:05.2]} 27...
Ra8 {[%clk 0:01:37.7]} 28. Bb5 {[%clk 0:01:04]} 28... Kf6 {[%clk 0:01:32.6]} 29.
c4 {[%clk 0:01:04]} 29... Kf5 {[%clk 0:01:21.4]} 30. c5 {[%clk 0:01:04.5]} 30...
h4 {[%clk 0:01:21.6]} 31. c6 {[%clk 0:01:04.4]} 31... h3 {[%clk 0:01:21.6]} 32.
Rg3 {[%clk 0:00:54.4]} 32... h2 {[%clk 0:01:21]} 33. Rh3 {[%clk 0:00:54.8]}
33... Kxf4 {[%clk 0:01:20.6]} 34. Kb2 {[%clk 0:00:41.9]} 34... Rc8 {[%clk
0:01:20]} 35. Kb3 {[%clk 0:00:34.7]} 35... Ne5 {[%clk 0:01:20.1]} 36. Rxh2
{[%clk 0:00:30.5]} 36... Nxc6 {[%clk 0:01:20.2]} 37. Rh4+ {[%clk 0:00:23.2]}
37... Kg5 {[%clk 0:01:15.3]} 38. Re4 {[%clk 0:00:21.2]} 38... Kf5 {[%clk
0:01:12.5]} 39. Bd3 {[%clk 0:00:20.4]} 39... g5 {[%clk 0:00:47.2]} 40. Rc4+
{[%clk 0:00:15.4]} 40... Kf6 {[%clk 0:00:45.3]} 41. Ka3 {[%clk 0:00:11.8]} 41...
Na7 {[%clk 0:00:44.5]} 42. Rd4 {[%clk 0:00:07.6]} 42... g4 {[%clk 0:00:38]} 43.
Bf1 {[%clk 0:00:01.1]} 43... g3 {[%clk 0:00:37]} 0-1